bitfinex/quotes_BTCUSD_20250825
["timestamp","ask_amount","ask_price","bid_price","bid_amount"]
[1756123205323,5.30957966,111450.0,111440.0,0.00571142]
[1756123205549,0.57903566,111450.0,111440.0,0.00571142]
[1756123205747,0.23903566,111450.0,111440.0,0.00571142]
[1756123206388,0.57903566,111450.0,111440.0,0.02316044]
[1756123206635,0.23803566,111450.0,111440.0,0.02316044]
[1756123206872,0.57803566,111450.0,111440.0,0.02316044]
[1756123207077,0.23903566,111450.0,111440.0,0.02316044]
[1756123207285,0.57903566,111450.0,111440.0,0.02316044]
[1756123208118,0.56960979,111450.0,111440.0,0.02316044]
[1756123208317,0.58365241,111450.0,111440.0,0.02316044]
[1756123209381,0.56048128,111450.0,111440.0,0.02316044]
[1756123211348,0.53349528,111450.0,111440.0,0.02316044]
[1756123212402,0.56047428,111450.0,111440.0,0.02316044]
[1756123212613,0.53349528,111450.0,111440.0,0.02316044]
[1756123213257,0.56502491,111450.0,111440.0,0.00053142]
[1756123213470,5.4380124,111450.0,111440.0,0.00053142]
[1756123214175,5.39539104,111450.0,111440.0,0.00053142]
[1756123214386,5.39539495,111450.0,111440.0,2.722e-05]
[1756123214611,5.41476879,111450.0,111440.0,2.722e-05]
[1756123214833,5.41477082,111450.0,111440.0,2.722e-05]
[1756123215268,5.41577139,111450.0,111440.0,2.722e-05]
[1756123216986,5.41577139,111450.0,111440.0,0.00301722]
[1756123217196,5.41477139,111450.0,111440.0,0.00301722]
[1756123217399,5.39539755,111450.0,111440.0,0.00516722]
[1756123217608,5.41044302,111450.0,111440.0,0.00301722]
[1756123218039,5.41044302,111450.0,111440.0,0.00516722]
[1756123221329,5.41044302,111450.0,111440.0,0.00301722]
[1756123221758,5.41044302,111450.0,111440.0,0.00516722]
[1756123222389,5.32355827,111450.0,111440.0,0.00516722]
[1756123222822,5.32355827,111450.0,111440.0,0.02261624]
[1756123223026,5.3095128,111450.0,111440.0,0.02261624]
[1756123223866,5.30110333,111450.0,111440.0,0.02261624]
[1756123224070,5.30851323,111450.0,111440.0,0.02261624]
[1756123224494,5.30851323,111450.0,111440.0,2.722e-05]
[1756123224495,5.39539798,111450.0,111440.0,2.722e-05]
[1756123225321,5.42397672,111450.0,111440.0,2.722e-05]
[1756123225529,5.39539798,111450.0,111440.0,2.722e-05]
[1756123226159,5.39639798,111450.0,111440.0,2.722e-05]
[1756123226575,5.41044305,111450.0,111440.0,2.722e-05]
[1756123226762,5.42982339,111450.0,111440.0,2.722e-05]
[1756123227198,5.4298307,111450.0,111440.0,2.722e-05]
[1756123227833,5.55740944,111450.0,111440.0,2.722e-05]
[1756123228035,5.5288307,111450.0,111440.0,2.722e-05]
[1756123228240,5.5298307,111450.0,111440.0,2.722e-05]
[1756123229499,5.4298307,111450.0,111440.0,2.722e-05]
[1756123229705,5.4298307,111450.0,111440.0,0.00301722]
[1756123229924,5.4298307,111450.0,111440.0,2.722e-05]
[1756123230354,5.42982851,111450.0,111440.0,2.722e-05]
[1756123232546,5.42982851,111450.0,111440.0,0.00301722]
[1756123232761,5.42982851,111450.0,111440.0,0.00516722]
[1756123233409,5.42982851,111450.0,111440.0,0.00301722]
[1756123233616,5.41510404,111450.0,111440.0,0.00516722]
[1756123233826,5.4298191,111450.0,111440.0,0.00516722]
[1756123235299,5.41043876,111450.0,111440.0,0.00516722]
[1756123236573,5.39639369,111450.0,111440.0,0.00516722]
[1756123237485,5.39639369,111450.0,111440.0,2.722e-05]
[1756123238573,5.39639369,111450.0,111440.0,0.00516722]
[1756123238780,5.41043871,111450.0,111440.0,0.00516722]
[1756123238991,5.41043871,111450.0,111440.0,0.00301722]
[1756123239629,5.41043871,111450.0,111440.0,0.00513722]
[1756123239841,5.41043871,111450.0,111440.0,0.00301722]
[1756123240044,5.41043871,111450.0,111440.0,0.00513722]
[1756123240257,5.41044702,111450.0,111440.0,0.00513722]
[1756123242002,5.396402,111450.0,111440.0,0.00513722]
[1756123242215,5.39641267,111450.0,111440.0,0.00513722]
[1756123243489,5.37958533,111450.0,111440.0,0.00513722]
[1756123243697,5.39642532,111450.0,111440.0,0.00513722]
[1756123244104,5.39642525,111450.0,111440.0,0.00513722]
[1756123245221,5.41046945,111450.0,111440.0,0.00513722]
[1756123246662,5.3235847,111450.0,111440.0,0.00513722]
[1756123246871,5.32358464,111450.0,111440.0,0.00513722]
[1756123250327,0.59304064,111450.0,111440.0,0.00513722]
[1756123250515,0.57899644,111450.0,111440.0,0.00513722]
[1756123250920,0.57799644,111450.0,111440.0,0.00513722]
[1756123252212,0.38278136,111450.0,111440.0,0.00513722]
[1756123252468,0.18576538,111450.0,111440.0,0.00513722]
[1756123252683,0.21274338,111450.0,111440.0,0.00513722]
[1756123253318,0.21274226,111450.0,111440.0,0.00513722]
[1756123253855,0.21474226,111450.0,111440.0,0.00513722]
[1756123254070,0.21474226,111450.0,111440.0,0.00613722]
[1756123254274,0.18576426,111450.0,111440.0,0.00613722]
[1756123254486,0.18576426,111450.0,111440.0,0.00713722]
[1756123255626,0.52576426,111450.0,111440.0,0.00713722]
[1756123256044,0.18576426,111450.0,111440.0,0.00713722]
[1756123257276,0.19980674,111450.0,111440.0,0.00713722]
[1756123257953,0.53980674,111450.0,111440.0,0.00713722]
[1756123259864,0.50584116,111450.0,111440.0,0.00713722]
[1756123264342,0.53108335,111450.0,111440.0,0.00713722]
[1756123266597,0.54512558,111450.0,111440.0,0.02458624]
[1756123266809,0.03928442,111450.0,111440.0,0.11147099]
[1756123267016,0.01404223,111450.0,111440.0,0.11147099]
[1756123268281,0.01404223,111450.0,111440.0,0.29093976]
[1756123268497,0.1884027,111480.0,111440.0,0.29093976]
[1756123268704,0.21363067,111480.0,111460.0,0.01744902]
[1756123268915,0.01404017,111470.0,111460.0,0.01744902]
[1756123269336,0.01404017,111470.0,111460.0,0.10645377]
[1756123269537,0.01404017,111470.0,111460.0,0.10969377]
[1756123271011,0.1794045,111480.0,111460.0,0.10969377]
[1756123271268,0.39566623,111470.0,111460.0,0.01956902]
[1756123271452,0.39566623,111470.0,111460.0,0.00212]
[1756123271633,0.39566623,111470.0,111460.0,0.08900475]
[1756123271838,0.39566623,111470.0,111460.0,0.09224475]
[1756123272398,0.5750867,111470.0,111460.0,0.09224475]
[1756123272641,0.39566623,111470.0,111460.0,0.09224475]
[1756123272859,0.5750867,111470.0,111460.0,0.09524475]
[1756123273054,0.5750867,111470.0,111460.0,0.00836]
[1756123273259,0.39566623,111470.0,111460.0,0.00836]
[1756123273928,0.5750867,111470.0,111460.0,0.00836]
[1756123274544,0.39566623,111470.0,111460.0,0.00836]
[1756123275785,0.39566623,111470.0,111460.0,0.11269377]
[1756123275992,0.39566623,111470.0,111460.0,0.14365323]
[1756123276616,0.39566623,111470.0,111460.0,0.11269377]
[1756123278483,0.39566623,111470.0,111460.0,0.29213033]
[1756123278705,0.38628396,111470.0,111460.0,1.73836643]
[1756123278934,0.10933201,111470.0,111460.0,1.73836643]
[1756123279155,0.10933201,111470.0,111460.0,1.76532643]
[1756123279371,0.08215291,111470.0,111460.0,0.88213033]
[1756123279579,0.08215291,111470.0,111460.0,1.73836643]
[1756123279785,0.08215291,111470.0,111460.0,1.73636643]
[1756123280203,0.08215291,111470.0,111460.0,0.88713033]
[1756123280425,0.08215291,111470.0,111460.0,1.74336643]
[1756123280649,0.08215291,111470.0,111460.0,0.63613033]
[1756123280864,0.08215291,111470.0,111460.0,0.29613033]
[1756123281512,0.08215291,111470.0,111460.0,0.30113033]
[1756123281729,0.08215291,111470.0,111460.0,1.15736643]
[1756123282151,0.08215291,111470.0,111460.0,1.55736643]
[1756123282846,0.08215291,111470.0,111460.0,0.70113033]
[1756123283285,0.08215291,111470.0,111460.0,1.55736643]
[1756123283702,0.08215291,111470.0,111460.0,1.29113033]
[1756123283913,0.08215291,111470.0,111460.0,2.14736643]
[1756123285642,0.08215291,111470.0,111460.0,2.17432443]
[1756123285852,0.08215291,111470.0,111460.0,1.31808833]
[1756123286063,0.08215291,111470.0,111460.0,1.03789033]
[1756123286490,0.08746291,111470.0,111460.0,0.68044131]
[1756123286702,0.08746291,111470.0,111460.0,0.28044131]
[1756123286923,0.08539291,111470.0,111460.0,0.27832131]
[1756123287138,0.08215291,111470.0,111460.0,0.29577033]
[1756123287343,0.08215291,111470.0,111460.0,0.27832131]
[1756123287553,0.08215291,111470.0,111460.0,0.26632131]
[1756123287756,0.08215291,111470.0,111460.0,0.28377033]
[1756123287960,0.08215291,111470.0,111460.0,0.29377033]
[1756123288377,0.08215291,111470.0,111460.0,1.12909448]
[1756123288586,0.08215291,111470.0,111460.0,1.12509448]
[1756123288801,0.08215291,111470.0,111460.0,0.28977033]
[1756123289004,0.08215291,111470.0,111460.0,1.12909448]
[1756123289213,0.08215291,111470.0,111460.0,0.29377033]
[1756123289420,0.08215291,111470.0,111460.0,1.12909448]
[1756123290862,0.08215291,111470.0,111460.0,1.22909448]
[1756123291073,0.08215291,111470.0,111460.0,1.71909448]
[1756123291497,0.08215291,111470.0,111460.0,1.72567448]
[1756123291706,0.08215291,111470.0,111460.0,1.92567448]
[1756123291915,0.08215291,111470.0,111460.0,1.91967448]
[1756123292125,0.08215291,111470.0,111460.0,2.31967448]
[1756123292337,0.08215291,111470.0,111460.0,2.32567448]
[1756123292742,0.08215291,111470.0,111460.0,2.31909448]
[1756123292950,0.08215291,111470.0,111460.0,2.31509448]
[1756123294382,0.08215291,111470.0,111460.0,1.48777033]
[1756123294539,1e-08,111470.0,111460.0,2.32409448]
[1756123295146,1e-08,111470.0,111460.0,1.48777033]
[1756123295345,1e-08,111470.0,111460.0,2.32309448]
[1756123295559,1e-08,111470.0,111460.0,2.32609448]
[1756123296939,1e-08,111470.0,111460.0,1.49077033]
[1756123297147,1e-08,111470.0,111460.0,2.32609448]
[1756123297575,1e-08,111470.0,111460.0,1.58535033]
[1756123297787,1e-08,111470.0,111460.0,2.42725448]
[1756123298840,0.0002,111500.0,111490.0,0.8368373]
[1756123299023,0.0002,111500.0,111490.0,1.7656262]
[1756123299258,0.0002,111500.0,111490.0,1.9156262]
[1756123299701,0.0002,111500.0,111490.0,2.3156262]
[1756123300108,0.00068172,111500.0,111490.0,1.95609357]
[1756123300318,0.00587172,111500.0,111490.0,0.82076942]
[1756123300554,0.00587172,111500.0,111490.0,0.29030205]
[1756123301662,0.00380172,111500.0,111490.0,0.29030205]
[1756123301877,0.00068172,111500.0,111490.0,1.1256262]
[1756123302121,0.00587172,111500.0,111490.0,0.29030205]
[1756123302349,0.00587172,111500.0,111490.0,0.29630205]
[1756123302798,0.00587172,111500.0,111490.0,0.29130205]
[1756123303025,0.00587172,111500.0,111490.0,0.29830205]
[1756123303298,0.00587172,111500.0,111490.0,0.29730205]
[1756123304096,0.02262893,111500.0,111490.0,1.3260462]
[1756123304307,0.00587172,111500.0,111490.0,1.3260462]
[1756123304488,0.00380172,111500.0,111490.0,1.3260462]
[1756123304684,0.00068172,111500.0,111490.0,1.3190462]
[1756123304928,0.00068172,111500.0,111490.0,1.6590462]
[1756123305132,0.00068172,111500.0,111490.0,1.6650462]
[1756123305523,0.00068172,111500.0,111490.0,0.82972205]
[1756123305742,0.00068172,111500.0,111490.0,1.6650462]
[1756123305743,0.00587172,111500.0,111490.0,1.6650462]
[1756123305871,0.00068172,111500.0,111490.0,1.6650462]
[1756123306090,0.00068172,111500.0,111490.0,1.6670462]
[1756123306987,0.00068172,111500.0,111490.0,2.1650462]
[1756123307208,0.03508,111530.0,111520.0,0.49678904]
[1756123307418,0.0519979,111530.0,111520.0,1.41899794]
[1756123307627,0.03522442,111530.0,111520.0,1.41899794]
[1756123309038,0.03522442,111530.0,111520.0,1.75899794]
[1756123309253,0.03522442,111530.0,111520.0,0.92367379]
[1756123309676,0.03522442,111530.0,111520.0,1.75899794]
[1756123309881,0.03522442,111530.0,111520.0,1.79876769]
[1756123310097,0.03522442,111530.0,111520.0,1.82391545]
[1756123311141,0.03522442,111530.0,111520.0,1.82591545]
[1756123311501,0.03522442,111530.0,111520.0,1.81891545]
[1756123311682,0.03522442,111530.0,111520.0,2.21691545]
[1756123311883,0.03522442,111530.0,111520.0,2.22491545]
[1756123312097,0.03522442,111530.0,111520.0,2.11334769]
[1756123312098,0.04041442,111530.0,111520.0,2.11334769]
[1756123312301,0.04041442,111530.0,111520.0,1.71334769]
[1756123312502,0.04041442,111530.0,111520.0,1.51334769]
[1756123313164,0.03522442,111530.0,111520.0,1.51334769]
[1756123313580,0.04041442,111530.0,111520.0,0.68102354]
[1756123313989,0.04041442,111530.0,111520.0,1.51634769]
[1756123314191,0.04041442,111530.0,111520.0,1.51334769]
[1756123314666,0.04041442,111530.0,111520.0,1.51534769]
[1756123314872,0.04041442,111530.0,111520.0,1.50734769]
[1756123315311,0.04041442,111530.0,111520.0,0.67902354]
[1756123315565,0.04041442,111530.0,111520.0,0.33902354]
[1756123315822,0.04041442,111530.0,111520.0,0.32157452]
[1756123316317,0.04041442,111530.0,111520.0,0.33902354]
[1756123316557,0.04041442,111530.0,111520.0,0.32157452]
[1756123316830,0.03522442,111530.0,111520.0,0.33202354]
[1756123317088,0.03522442,111530.0,111520.0,1.16534769]
[1756123317089,0.04041442,111530.0,111520.0,1.16534769]
[1756123317353,0.03522442,111530.0,111520.0,1.16534769]
[1756123317587,0.03522442,111530.0,111520.0,1.16734769]
[1756123319054,0.03522442,111530.0,111520.0,0.33802354]
[1756123319253,0.03522442,111530.0,111520.0,1.17334769]
[1756123320403,0.03522442,111530.0,111520.0,1.16676769]
[1756123320833,0.04041442,111530.0,111520.0,1.16676769]
[1756123321287,0.03522442,111530.0,111520.0,1.16676769]
[1756123321538,0.04041442,111530.0,111520.0,1.16676769]
[1756123322808,0.04041442,111530.0,111520.0,0.33144354]
[1756123323069,0.03834442,111530.0,111520.0,0.82144354]
[1756123323281,0.03522442,111530.0,111520.0,1.65676769]
[1756123324126,0.03522442,111530.0,111520.0,1.75676769]
[1756123324555,0.03522442,111530.0,111520.0,1.95676769]
[1756123324777,0.03522442,111530.0,111520.0,1.96334769]
[1756123325654,0.03522442,111530.0,111520.0,1.96134769]
[1756123325871,0.03522442,111530.0,111520.0,2.16134769]
[1756123326089,0.03522442,111530.0,111520.0,2.16334769]
[1756123326554,0.03522442,111530.0,111520.0,2.25792769]
[1756123326776,0.04041442,111530.0,111520.0,2.15734769]
[1756123327261,0.04041442,111530.0,111520.0,2.06334769]
[1756123327464,0.04041442,111530.0,111520.0,2.19029269]
[1756123327670,0.04041442,111530.0,111520.0,1.54029269]
[1756123327880,0.04041442,111530.0,111520.0,0.1472345]
[1756123328089,0.05718172,111530.0,111520.0,0.10088475]
[1756123328531,0.07533804,111530.0,111520.0,0.10088475]
[1756123328738,0.07533804,111530.0,111520.0,0.10288475]
[1756123328944,0.05718172,111530.0,111520.0,0.29967379]
[1756123329160,0.05718725,111530.0,111520.0,0.29967379]
[1756123329361,0.05718725,111530.0,111520.0,0.24522477]
[1756123329567,0.05718725,111530.0,111520.0,0.23922477]
[1756123329771,0.05718725,111530.0,111520.0,0.24867379]
[1756123329981,0.05718725,111530.0,111520.0,0.06933377]
[1756123330190,0.05718725,111530.0,111520.0,0.07633377]
[1756123330393,0.05718725,111530.0,111520.0,0.05888475]
[1756123330611,0.05718725,111530.0,111520.0,0.07633377]
[1756123330835,0.05718725,111530.0,111520.0,0.08233377]
[1756123332974,0.05718725,111530.0,111520.0,0.26167379]
[1756123334080,0.05718725,111530.0,111520.0,0.08233377]
[1756123334298,0.05718725,111530.0,111520.0,0.26167379]
[1756123334508,0.05718725,111530.0,111520.0,0.08233377]
[1756123334762,0.05718725,111530.0,111520.0,0.26167379]
[1756123335396,0.04041442,111530.0,111520.0,0.26167379]
[1756123336834,0.04041442,111530.0,111520.0,1.09699794]
[1756123337042,0.03834442,111530.0,111520.0,1.09699794]
[1756123337255,0.03522442,111530.0,111520.0,1.09699794]
[1756123337660,0.00022442,111530.0,111520.0,1.1148355]
[1756123337887,0.00022442,111530.0,111520.0,1.1078355]
[1756123338269,0.00022442,111530.0,111520.0,1.1018355]
[1756123338497,0.00022442,111530.0,111520.0,1.1078355]
[1756123338947,0.00022442,111530.0,111520.0,1.1018355]
[1756123339403,0.00022442,111530.0,111520.0,1.1098355]
[1756123339904,0.00022442,111530.0,111520.0,1.1088355]
[1756123340129,0.00022442,111530.0,111520.0,0.28151135]
[1756123340351,0.00022442,111530.0,111520.0,1.1198355]
[1756123340562,0.00022442,111530.0,111520.0,1.3198355]
[1756123340773,0.00022442,111530.0,111520.0,1.6598355]
[1756123340983,0.00022442,111530.0,111520.0,1.74046176]
[1756123341201,0.00022442,111530.0,111520.0,0.90513761]
[1756123341410,0.00320442,111530.0,111520.0,0.70513761]
[1756123341626,0.00320442,111530.0,111520.0,1.54046176]
[1756123341842,0.00022442,111530.0,111520.0,1.54046176]
[1756123342271,0.00022442,111530.0,111520.0,0.70513761]
[1756123342653,0.00022442,111530.0,111520.0,1.54046176]
[1756123342984,0.00022442,111530.0,111520.0,1.4598355]
[1756123343123,0.00022442,111530.0,111520.0,1.5226242]
[1756123343835,0.00022442,111530.0,111520.0,1.44199794]
[1756123344083,0.00520442,111530.0,111520.0,1.44199794]
[1756123344625,0.00022442,111530.0,111520.0,1.44199794]
[1756123344821,0.00022442,111530.0,111520.0,1.45790142]
[1756123345028,0.00022442,111530.0,111520.0,1.53852768]
[1756123348167,0.014027,111570.0,111560.0,0.01744902]
[1756123348388,0.01617131,111570.0,111560.0,0.01744902]
[1756123348801,0.03295712,111570.0,111560.0,0.01744902]
[1756123349082,0.21221708,111570.0,111560.0,0.01744902]
[1756123349335,0.21221708,111570.0,111540.0,0.19675615]
[1756123349579,0.19543096,111570.0,111560.0,0.01744902]
[1756123349773,0.19543096,111570.0,111560.0,0.02044902]
[1756123349990,0.19941096,111570.0,111560.0,0.02044902]
[1756123350670,0.21619734,111570.0,111560.0,0.01744902]
[1756123351358,0.19941096,111570.0,111560.0,0.01744902]
[1756123351812,0.18538396,111570.0,111560.0,0.01744902]
[1756123352061,0.52538396,111570.0,111560.0,0.01744902]
[1756123352291,0.34612431,111570.0,111560.0,0.01744902]
[1756123352766,0.52538396,111570.0,111560.0,0.01744902]
[1756123352984,0.52538396,111570.0,111560.0,0.01749902]
[1756123353218,0.52538396,111570.0,111560.0,0.02049902]
[1756123353669,0.60009165,111570.0,111560.0,0.02049902]
[1756123353931,0.52538396,111570.0,111560.0,0.02049902]
[1756123355280,0.53841036,111570.0,111560.0,0.02049902]
[1756123355717,0.53841036,111570.0,111560.0,0.01749902]
[1756123356126,0.53841036,111570.0,111560.0,0.02149902]
[1756123359262,0.35417071,111570.0,111560.0,0.09260065]
[1756123359481,0.35417071,111570.0,111560.0,0.36074112]
[1756123359691,0.35941071,111570.0,111560.0,0.36074112]
[1756123359907,0.35941071,111570.0,111560.0,0.1794854]
[1756123360582,0.35941071,111570.0,111560.0,0.1754854]
[1756123360800,0.35941071,111570.0,111560.0,0.1794854]
[1756123361032,0.53867036,111570.0,111560.0,0.10838377]
[1756123361252,0.5941636,111570.0,111560.0,0.10838377]
[1756123361473,0.5941636,111570.0,111560.0,0.02149902]
[1756123361689,0.5801372,111570.0,111560.0,0.02149902]
[1756123362116,0.52464396,111570.0,111560.0,0.02149902]
[1756123362328,0.52464396,111570.0,111560.0,0.01749902]
[1756123362516,0.52464396,111570.0,111560.0,0.01849902]
[1756123362720,0.52464396,111570.0,111560.0,0.02449902]
[1756123362927,0.34538431,111570.0,111560.0,0.02449902]
[1756123363581,0.34538431,111570.0,111560.0,0.11138377]
[1756123365881,0.52464396,111570.0,111560.0,0.11138377]
[1756123367030,0.53866982,111570.0,111560.0,0.11138377]
[1756123369065,0.35625017,111570.0,111560.0,0.11347377]
[1756123369276,0.35417017,111570.0,111560.0,0.11347377]
[1756123369487,0.35417017,111570.0,111560.0,0.29274949]
[1756123369663,0.35417017,111570.0,111560.0,0.11347377]
[1756123370108,0.35417017,111570.0,111560.0,0.29274949]
[1756123370537,0.35417017,111570.0,111560.0,0.11347377]
[1756123370745,0.35417017,111570.0,111560.0,0.11138377]
[1756123370746,0.35941017,111570.0,111560.0,0.11138377]
[1756123370948,0.35625017,111570.0,111560.0,0.11347377]
[1756123371370,0.35625017,111570.0,111560.0,0.11138377]
[1756123371602,0.35941017,111570.0,111560.0,0.11138377]
[1756123372030,0.35625017,111570.0,111560.0,0.11347377]
[1756123372273,0.34014431,111570.0,111560.0,0.11347377]
[1756123372894,0.34222431,111570.0,111560.0,0.11347377]
[1756123373116,0.52464396,111570.0,111560.0,0.11347377]
[1756123373320,0.52464396,111570.0,111560.0,0.11138377]
[1756123373526,0.34538431,111570.0,111560.0,0.11138377]
[1756123373729,0.34538431,111570.0,111560.0,0.11347377]
[1756123375407,0.34014431,111570.0,111560.0,0.11347377]
[1756123375644,0.34538431,111570.0,111560.0,0.11347377]
[1756123376236,0.52464396,111570.0,111560.0,0.11138377]
[1756123376450,0.52464396,111570.0,111560.0,0.11347377]
[1756123376894,0.52464396,111570.0,111560.0,0.11138377]
[1756123377112,0.53866961,111570.0,111560.0,0.11138377]
[1756123377328,0.35940996,111570.0,111560.0,0.11138377]
[1756123377735,0.53866961,111570.0,111560.0,0.11138377]
[1756123378619,0.35940996,111570.0,111560.0,0.11138377]
[1756123378837,0.53550961,111570.0,111560.0,0.11347377]
[1756123379267,0.53866961,111570.0,111560.0,0.11347377]
[1756123379494,0.35940996,111570.0,111560.0,0.11347377]
[1756123380133,0.35416996,111570.0,111560.0,0.11347377]
[1756123380812,0.01416996,111570.0,111560.0,0.1845754]
[1756123381015,0.01416996,111570.0,111560.0,0.1875654]
[1756123381226,0.01416996,111570.0,111560.0,0.11347377]
[1756123381431,0.01416996,111570.0,111560.0,0.29573949]
[1756123381852,0.00014431,111570.0,111560.0,0.29573949]
[1756123382308,0.00014431,111570.0,111560.0,0.33709408]
[1756123382523,0.00014431,111570.0,111560.0,0.15482836]
[1756123382740,0.18464396,111570.0,111560.0,0.11138377]
[1756123385150,0.22105285,111570.0,111560.0,0.11138377]
[1756123385359,0.18464396,111570.0,111560.0,0.11138377]
[1756123391701,0.52464396,111570.0,111560.0,0.00705]
[1756123391963,0.5498875,111570.0,111560.0,0.00705]
[1756123392176,0.56000524,111570.0,111560.0,0.00705]
[1756123392813,0.56000524,111570.0,111560.0,0.02449902]
[1756123393243,0.56000524,111570.0,111560.0,0.01749902]
[1756123393440,0.56000524,111570.0,111560.0,0.01949902]
[1756123393675,0.63695025,111570.0,111560.0,0.01949902]
[1756123394317,0.63395025,111570.0,111560.0,0.01949902]
[1756123394550,0.62553597,111570.0,111560.0,0.01949902]
[1756123395138,0.55159096,111570.0,111560.0,0.01949902]
[1756123395339,0.56561807,111570.0,111560.0,0.01949902]
[1756123396557,0.56761807,111570.0,111560.0,0.01949902]
[1756123398319,0.57602208,111570.0,111560.0,0.01949902]
[1756123398531,0.57502208,111570.0,111560.0,0.01949902]
[1756123400280,0.55800208,111570.0,111560.0,0.01949902]
[1756123400494,0.54959807,111570.0,111560.0,0.01949902]
[1756123400715,0.63174309,111570.0,111560.0,0.01949902]
[1756123401999,0.55799839,111570.0,111560.0,0.01949902]
[1756123402646,0.54959807,111570.0,111560.0,0.01949902]
[1756123405354,0.53557096,111570.0,111560.0,0.01949902]
[1756123408215,0.53319572,111570.0,111560.0,0.01949902]
[1756123409053,0.54722319,111570.0,111560.0,0.01949902]
[1756123410012,0.61989,111570.0,111560.0,0.01949902]
[1756123410208,0.54722319,111570.0,111560.0,0.01949902]
[1756123410768,0.54722319,111570.0,111560.0,0.02150902]
[1756123411197,0.54722319,111570.0,111560.0,0.01949902]
[1756123412226,0.54722319,111570.0,111560.0,0.02150902]
[1756123412619,0.54722319,111570.0,111560.0,0.01949902]
[1756123413288,0.53319572,111570.0,111560.0,0.01949902]
[1756123414113,0.54824502,111570.0,111560.0,0.02150902]
[1756123414336,0.55664683,111570.0,111560.0,0.01949902]
[1756123415115,0.54824502,111570.0,111560.0,0.01949902]
[1756123415312,0.55664838,111570.0,111560.0,0.01949902]
[1756123415723,0.54824502,111570.0,111560.0,0.01949902]
[1756123415936,0.55664864,111570.0,111560.0,0.01949902]
[1756123416170,0.55664864,111570.0,111560.0,0.00406]
[1756123416352,0.55665043,111570.0,111560.0,0.00205]
[1756123416551,0.5706779,111570.0,111560.0,0.00205]
[1756123418413,0.58749522,111570.0,111560.0,0.00205]
[1756123419420,0.58433522,111570.0,111560.0,0.00406]
[1756123419638,0.58739522,111570.0,111560.0,0.00406]
[1756123420107,0.58739522,111570.0,111560.0,0.00205]
[1756123420342,0.58739522,111570.0,111560.0,0.02156902]
[1756123420553,0.5654179,111570.0,111560.0,0.02156902]
[1756123420766,0.55701249,111570.0,111560.0,0.02156902]
[1756123420977,0.54298502,111570.0,111560.0,0.02156902]
[1756123421426,0.5514023,111570.0,111560.0,0.02156902]
[1756123422263,0.5535323,111570.0,111560.0,0.02156902]
[1756123422915,0.55353099,111570.0,111560.0,0.02156902]
[1756123423320,0.54511502,111570.0,111560.0,0.02156902]
[1756123424406,0.54817502,111570.0,111560.0,0.01949902]
[1756123424629,0.54817502,111570.0,111560.0,0.02156902]
[1756123424862,0.54817502,111570.0,111560.0,0.01956902]
[1756123425132,0.54617502,111570.0,111560.0,0.01749902]
[1756123425372,0.61893701,111570.0,111560.0,0.02049902]
[1756123425597,0.61993701,111570.0,111560.0,0.00305]
[1756123425814,0.64518175,111570.0,111560.0,0.00305]
[1756123426240,0.64518188,111570.0,111560.0,0.00305]
[1756123426445,0.64418188,111570.0,111560.0,0.00305]
[1756123426695,0.64418238,111570.0,111560.0,0.00305]
[1756123426903,0.64618238,111570.0,111560.0,0.00305]
[1756123427288,0.64618238,111570.0,111560.0,5e-05]
[1756123427495,0.66020979,111570.0,111560.0,5e-05]
[1756123428805,0.5874478,111570.0,111560.0,5e-05]
[1756123429023,0.5874478,111570.0,111560.0,0.00205]
[1756123430508,0.5874478,111570.0,111560.0,0.02156902]
[1756123431731,0.57342039,111570.0,111560.0,0.02156902]
[1756123431939,0.56823039,111570.0,111560.0,0.02463902]
[1756123432145,0.56823039,111570.0,111560.0,0.02156902]
[1756123432544,0.57036039,111570.0,111560.0,0.02156902]
[1756123433161,0.57342039,111570.0,111560.0,0.02156902]
[1756123433672,0.64870692,111570.0,111560.0,0.01949902]
[1756123433910,0.64870692,111570.0,111560.0,0.00205]
[1756123434564,0.57342039,111570.0,111560.0,0.00205]
[1756123434966,0.58744775,111570.0,111560.0,0.00205]
[1756123435426,0.58744916,111570.0,111560.0,0.00205]
[1756123437014,0.58744916,111570.0,111560.0,0.00412]
[1756123437221,0.58438916,111570.0,111560.0,0.00412]
[1756123437436,0.58225916,111570.0,111560.0,0.00719]
[1756123437639,0.58225916,111570.0,111560.0,0.00412]
[1756123438052,0.58438916,111570.0,111560.0,0.00412]
[1756123438263,0.58225916,111570.0,111560.0,0.00719]
[1756123438477,0.58225916,111570.0,111560.0,0.00412]
[1756123438692,0.34,111560.0,111540.0,0.06074065]
[1756123438899,0.34,111560.0,111550.0,0.08688475]
[1756123440080,0.367946,111560.0,111550.0,0.08688475]
[1756123440310,0.54722172,111560.0,111550.0,0.08688475]
[1756123440515,0.54722172,111560.0,111550.0,0.10433377]
[1756123441149,0.20722172,111560.0,111550.0,0.10733377]
[1756123441797,0.20622172,111560.0,111550.0,0.10733377]
[1756123442632,0.17927572,111560.0,111550.0,0.10733377]
[1756123442838,0.22099939,111560.0,111550.0,0.02044902]
[1756123443048,0.18446572,111560.0,111550.0,0.02044902]
[1756123443694,0.18546572,111560.0,111550.0,0.02044902]
[1756123444108,0.18546572,111560.0,111550.0,0.003]
[1756123444317,0.56924616,111560.0,111550.0,0.003]
[1756123446228,0.58327458,111560.0,111550.0,0.003]
[1756123446661,0.65990214,111560.0,111550.0,0.003]
[1756123447291,0.65989751,111560.0,111550.0,0.003]
[1756123447744,5.39885446,111560.0,111550.0,0.003]
[1756123447974,5.40516477,111560.0,111550.0,0.003]
[1756123448829,5.40416477,111560.0,111550.0,0.003]
[1756123449724,5.40416477,111560.0,111530.0,0.01744902]
[1756123449955,0.17930787,111540.0,111530.0,0.01744902]
[1756123450159,0.18142787,111540.0,111530.0,0.01744902]
[1756123450577,0.18437787,111540.0,111530.0,0.01744902]
[1756123450789,0.19840823,111540.0,111530.0,0.01744902]
[1756123451365,0.19840823,111540.0,111530.0,0.02044902]
[1756123451822,0.19840823,111540.0,111530.0,0.02144902]
[1756123452037,0.18437787,111540.0,111530.0,0.02144902]
[1756123452664,0.18225787,111540.0,111530.0,0.02144902]
[1756123453101,0.18437787,111540.0,111530.0,0.02144902]
[1756123455979,0.19840812,111540.0,111530.0,0.02144902]
[1756123456615,0.19333812,111540.0,111530.0,0.02144902]
[1756123457232,0.19628812,111540.0,111530.0,0.02144902]
[1756123457443,0.19840812,111540.0,111530.0,0.02144902]
[1756123457652,0.20713715,111540.0,111530.0,0.02144902]
[1756123457853,0.19333812,111540.0,111530.0,0.02144902]
[1756123458086,0.19545812,111540.0,111530.0,0.02144902]
[1756123458291,0.19840812,111540.0,111530.0,0.02144902]
[1756123458493,0.19628812,111540.0,111530.0,0.02144902]
[1756123458694,0.19333812,111540.0,111530.0,0.02144902]
[1756123459298,0.19628812,111540.0,111530.0,0.02144902]
[1756123459987,0.19840812,111540.0,111530.0,0.02144902]
[1756123460189,0.19628812,111540.0,111530.0,0.02144902]
[1756123460749,0.19840812,111540.0,111530.0,0.02144902]
[1756123461157,0.19628812,111540.0,111530.0,0.02144902]
[1756123461567,0.18225787,111540.0,111530.0,0.02144902]
[1756123461879,0.18437787,111540.0,111530.0,0.02144902]